bitfinex/quotes_ETHUSD_20250705
["timestamp","ask_amount","ask_price","bid_price","bid_amount"]
[1751683185593,5.31751625,2516.7,2516.6,18.107]
[1751683186211,5.31751625,2516.7,2516.6,10.001]
[1751683186500,12.9057524,2516.7,2516.6,8.107]
[1751683186665,13.27268898,2516.7,2516.6,8.107]
[1751683186998,1.17163658,2516.7,2516.6,8.107]
[1751683187290,1.17160583,2516.7,2516.6,18.107]
[1751683188190,5.1450156,2516.7,2516.6,10.001]
[1751683188572,5.1450156,2516.7,2516.6,18.107]
[1751683188893,6.8169109,2516.7,2516.6,18.107]
[1751683189403,6.8169109,2516.7,2516.6,8.107]
[1751683189701,7.3169109,2516.7,2516.6,8.107]
[1751683190006,7.5669109,2516.7,2516.6,8.107]
[1751683191295,7.5669109,2516.7,2516.6,8.108]
[1751683193732,7.57072251,2516.7,2516.6,8.108]
[1751683197819,1.12066991,2516.7,2516.6,8.108]
[1751683198025,0.75,2516.7,2516.6,8.108]
[1751683198726,0.75,2516.7,2516.6,22.08161519]
[1751683199228,0.75,2516.7,2516.6,18.108]
[1751683200232,0.75,2516.7,2516.6,22.08161519]
[1751683200809,0.75,2516.7,2516.6,25.49754635]
[1751683212650,0.25,2516.7,2516.6,25.49754635]
[1751683226047,0.25,2516.7,2516.6,17.39054635]
[1751683226244,0.25,2516.7,2516.6,25.49054635]
[1751683228058,0.25,2516.7,2516.6,17.39054635]
[1751683228265,0.25,2516.7,2516.6,25.49054635]
[1751683230085,0.25,2516.7,2516.6,16.58024635]
[1751683230273,0.25,2516.7,2516.6,24.68024635]
[1751683232157,0.62247139,2516.7,2516.6,24.68024635]
[1751683234693,0.62247139,2516.7,2516.6,25.50734635]
[1751683236905,0.62247139,2516.7,2516.6,24.68024635]
[1751683237596,0.62247139,2516.7,2516.6,24.67824635]
[1751683249590,0.62247139,2516.7,2516.6,22.07261519]
[1751683250903,0.62247139,2516.7,2516.6,13.97461519]
[1751683251109,0.62247139,2516.7,2516.6,22.07061519]
[1751683251478,0.25,2516.7,2516.6,22.07061519]
[1751683251784,0.25,2516.7,2516.6,22.06961519]
[1751683252208,0.62279527,2516.7,2516.6,22.06961519]
[1751683253196,0.25,2516.7,2516.6,22.06961519]
[1751683253700,1e-08,2516.8,2516.7,13.9734573]
[1751683254620,1e-08,2516.8,2516.7,22.0684573]
[1751683254985,0.37281017,2516.8,2516.7,22.0684573]
[1751683255803,0.37281017,2516.8,2516.7,13.9734573]
[1751683255994,0.37281017,2516.8,2516.7,22.0684573]
[1751683257713,0.37282217,2516.8,2516.7,22.0684573]
[1751683262520,0.37288283,2516.8,2516.7,22.0684573]
[1751683263619,0.7969,2516.7,2516.6,0.001]
[1751683263818,1.16978282,2516.7,2516.6,8.094]
[1751683264019,0.37288282,2516.7,2516.6,12.06761519]
[1751683264318,0.37288282,2516.7,2516.6,22.06761519]
[1751683265185,0.37288282,2516.7,2516.6,24.75028371]
[1751683270821,0.37288282,2516.7,2516.6,25.52818371]
[1751683275227,0.37288282,2516.7,2516.6,17.43518371]
[1751683275430,0.37288282,2516.7,2516.6,22.06461519]
[1751683276925,0.37288282,2516.7,2516.6,13.97461519]
[1751683277133,0.37288282,2516.7,2516.6,22.06461519]
[1751683278328,0.37288282,2516.7,2516.6,13.97461519]
[1751683278531,0.37288282,2516.7,2516.6,22.06461519]
[1751683279633,0.37288282,2516.7,2516.6,13.97461519]
[1751683279832,0.37288282,2516.7,2516.6,22.06461519]
[1751683281806,0.37288282,2516.7,2516.6,22.06361519]
[1751683288546,1e-08,2516.8,2516.7,13.9734573]
[1751683288747,0.37241662,2516.8,2516.7,13.9734573]
[1751683294357,0.8103,2517.6,2516.8,0.8126]
[1751683294532,0.8103,2517.6,2517.4,10.0]
[1751683294738,0.8103,2517.6,2517.5,18.087]
[1751683295326,0.8103,2517.6,2517.5,22.05919463]
[1751683295532,0.8103,2517.6,2517.5,18.087]
[1751683295839,0.8103,2517.6,2517.5,22.05919463]
[1751683296445,0.8103,2517.6,2517.5,18.087]
[1751683301462,0.8123,2517.6,2517.5,18.087]
[1751683306363,1.1838832,2517.6,2517.5,18.087]
[1751683306955,1.1838832,2517.6,2517.5,10.0]
[1751683307242,2.06447969,2517.6,2517.5,18.083]
[1751683308651,1.1838832,2517.6,2517.5,18.083]
[1751683309767,1.1838832,2517.6,2517.5,22.05519463]
[1751683310072,1.1838832,2517.6,2517.5,18.083]
[1751683310972,0.3735832,2517.6,2517.5,22.05519463]
[1751683311878,0.3735832,2517.6,2517.5,18.083]
[1751683312280,0.3735832,2517.6,2517.5,22.05519463]
[1751683315075,0.3735832,2517.6,2517.5,18.083]
[1751683315578,0.37380296,2517.6,2517.5,22.05519463]
[1751683316146,0.37380996,2517.6,2517.5,22.05519463]
[1751683317387,0.373899,2517.6,2517.5,22.05519463]
[1751683318285,0.373899,2517.6,2517.5,24.65794876]
[1751683324178,0.373899,2517.6,2517.5,16.57494876]
[1751683324482,0.373899,2517.6,2517.5,24.65494876]
[1751683327093,0.373899,2517.6,2517.5,16.57494876]
[1751683327389,0.373899,2517.6,2517.5,24.65394876]
[1751683328300,0.373899,2517.6,2517.5,16.57494876]
[1751683328596,0.373899,2517.6,2517.5,10.0]
[1751683328780,0.373899,2517.6,2517.5,22.05019463]
[1751683335292,0.373899,2517.6,2517.5,13.97219463]
[1751683335607,0.373899,2517.6,2517.5,22.04919463]
[1751683337296,0.002,2517.6,2517.5,22.04919463]
[1751683337467,0.37441882,2517.6,2517.5,22.04919463]
[1751683338478,0.37441882,2517.6,2517.5,24.65134669]
[1751683338970,0.37441882,2517.6,2517.5,25.48374669]
[1751683339999,0.37441882,2517.6,2517.5,25.48274669]
[1751683343000,0.002,2517.6,2517.5,25.48274669]
[1751683343172,0.37450126,2517.6,2517.5,16.57434669]
[1751683343499,0.37450126,2517.6,2517.5,22.04819463]
[1751683346506,0.37450126,2517.6,2517.5,22.04719463]
[1751683353204,0.37461214,2517.6,2517.5,22.04719463]
[1751683354113,0.37461214,2517.6,2517.5,13.97219463]
[1751683354313,0.37461214,2517.6,2517.5,22.04519463]
[1751683354610,0.37461214,2517.6,2517.5,24.72267832]
[1751683358923,0.002,2517.6,2517.5,24.72267832]
[1751683359112,0.37459594,2517.6,2517.5,24.72267832]
[1751683360720,0.37460809,2517.6,2517.5,24.72267832]
[1751683361219,0.37460844,2517.6,2517.5,24.72267832]
[1751683361424,0.3746158,2517.6,2517.5,24.72267832]
[1751683364228,0.3746158,2517.6,2517.5,22.04519463]
[1751683364827,0.37466545,2517.6,2517.5,22.04519463]
[1751683366640,0.37466545,2517.6,2517.5,13.97219463]
[1751683366814,0.37466545,2517.6,2517.5,18.07]
[1751683368037,0.37466545,2517.6,2517.5,10.0]
[1751683368330,2.14077635,2517.6,2517.5,8.07]
[1751683368536,2.14077635,2517.6,2517.5,18.07]
[1751683372738,6.11281321,2517.6,2517.5,18.07]
[1751683372916,2.14077635,2517.6,2517.5,18.07]
[1751683374540,6.11281321,2517.6,2517.5,18.07]
[1751683375619,5.74014776,2517.6,2517.5,18.07]
[1751683377422,6.11231303,2517.6,2517.5,18.07]
[1751683378025,5.74014776,2517.6,2517.5,18.07]
[1751683378947,6.11230411,2517.6,2517.5,18.07]
[1751683380649,6.11230411,2517.6,2517.5,10.0]
[1751683380942,6.11230411,2517.6,2517.5,18.068]
[1751683383539,2.14026725,2517.6,2517.5,18.068]
[1751683383948,6.11230411,2517.6,2517.5,18.068]
[1751683386641,6.11217676,2517.6,2517.5,18.068]
[1751683387852,3.97228237,2517.5,2517.0,10.001]
[1751683388049,5.51512868,2517.3,2517.2,10.0]
[1751683388222,5.88715768,2517.3,2517.2,8.067]
[1751683392355,5.51512868,2517.3,2517.2,8.067]
[1751683392544,5.88717163,2517.3,2517.2,8.067]
[1751683395961,5.88717163,2517.3,2517.0,3.97397428]
[1751683396264,0.37204295,2517.2,2517.1,8.065]
[1751683398261,5.51512868,2517.3,2517.2,10.0]
[1751683398446,5.88760697,2517.3,2517.2,10.0]
[1751683400136,5.88960697,2517.3,2517.2,10.0]
[1751683407986,0.37447829,2517.3,2517.2,10.0]
[1751683412792,0.37463793,2517.3,2517.2,10.0]
[1751683430505,5.88976661,2517.3,2517.2,10.0]
[1751683434381,5.88976661,2517.3,2517.2,18.057]
[1751683436304,12.02091298,2517.3,2517.2,10.0]
[1751683436509,12.02091298,2517.3,2517.2,18.056]
[1751683436714,12.02091298,2517.3,2517.2,10.0]
[1751683437006,3.97273023,2517.2,2517.0,0.001]
[1751683437208,5.88776661,2517.1,2517.0,0.001]
[1751683437508,5.88776661,2517.1,2517.0,18.057]
[1751683438379,0.37263793,2517.1,2517.0,18.057]
[1751683438583,0.37263793,2517.1,2517.0,22.80128371]
[1751683438994,0.002,2517.3,2517.0,22.80128371]
[1751683439390,0.37251899,2517.2,2517.0,22.80128371]
[1751683439615,0.002,2517.3,2517.0,25.47872618]
[1751683441726,0.37253473,2517.2,2517.0,25.47872618]
[1751683441886,0.002,2517.3,2517.0,25.47872618]
[1751683442085,0.37253163,2517.2,2517.0,25.47872618]
[1751683442281,0.37253163,2517.1,2517.0,25.47872618]
[1751683444215,0.002,2517.3,2517.2,13.97266804]
[1751683444425,0.37450651,2517.3,2517.2,22.02766804]
[1751683447018,0.37450651,2517.3,2517.2,18.055]
[1751683449522,0.37450651,2517.3,2517.2,22.02766804]
[1751683450233,0.37450651,2517.3,2517.2,23.28910592]
[1751683457323,0.002,2517.3,2517.2,23.28910592]
[1751683463201,0.002,2517.3,2517.2,22.48820592]
[1751683463399,0.37356217,2517.3,2517.2,22.02266804]
[1751683464601,0.37356217,2517.3,2517.2,22.02166804]
[1751683465331,0.37356217,2517.3,2517.2,10.0]
[1751683465527,0.37356217,2517.3,2517.2,18.049]
[1751683475545,0.37356217,2517.3,2517.2,18.048]
[1751683476243,0.37356217,2517.3,2517.2,10.0]
[1751683476448,0.37356217,2517.3,2517.2,18.048]
[1751683477815,0.37356217,2517.3,2517.2,10.0]
[1751683478021,12.68544307,2517.3,2517.2,18.047]
[1751683478340,14.35140767,2517.3,2517.2,18.047]
[1751683479648,10.37889745,2517.3,2517.2,18.047]
[1751683479816,0.37374465,2517.3,2517.2,22.01966804]
[1751683480022,0.37374465,2517.3,2517.2,22.77416804]
[1751683481418,0.002,2517.3,2517.2,22.77416804]
[1751683484435,0.002,2517.3,2517.2,22.77316804]
[1751683485236,0.002,2517.3,2517.2,25.44786534]
[1751683486530,0.002,2517.3,2517.2,25.44686534]
[1751683488863,0.002,2517.3,2517.2,17.40186534]
[1751683489037,0.002,2517.3,2517.2,25.44686534]
[1751683497637,0.002,2517.3,2517.2,17.40186534]
[1751683497838,0.002,2517.3,2517.2,25.44486534]
[1751683499172,0.002,2517.3,2517.2,17.40186534]
[1751683499350,0.002,2517.3,2517.2,25.44386534]
[1751683502170,0.002,2517.3,2517.2,17.40186534]
[1751683502360,0.002,2517.3,2517.2,24.68936534]
[1751683502561,0.002,2517.3,2517.2,16.64736534]
[1751683502869,0.002,2517.3,2517.2,24.68936534]
[1751683505857,0.002,2517.3,2517.2,25.49356534]
[1751683516152,0.37467481,2517.3,2517.2,25.49356534]
[1751683519784,0.37467481,2517.3,2517.2,17.45156534]
[1751683519970,0.37467481,2517.3,2517.2,22.01066804]
[1751683521687,0.37467481,2517.3,2517.2,13.97266804]
[1751683521990,0.37467481,2517.3,2517.2,22.01066804]
[1751683525789,0.37467481,2517.3,2517.2,22.00966804]
[1751683527473,0.002,2517.3,2517.2,22.00966804]
[1751683527683,0.37470226,2517.3,2517.2,22.00966804]
[1751683528367,0.37470226,2517.3,2517.2,25.37991485]
[1751683528770,0.37470226,2517.3,2517.2,30.11991485]
[1751683528976,0.002,2517.3,2517.2,30.11991485]
[1751683534890,0.002,2517.3,2517.2,32.07891485]
[1751683536695,0.002,2517.3,2517.2,22.08291485]
[1751683536870,0.002,2517.3,2517.2,26.74766804]
[1751683537193,0.002,2517.3,2517.2,16.74766804]
[1751683537500,0.37415433,2517.3,2517.2,26.74766804]
[1751683537894,0.37415433,2517.3,2517.2,18.71266804]
[1751683538097,0.37415433,2517.3,2517.2,26.74766804]
[1751683538598,0.37415433,2517.3,2517.2,22.00766804]
[1751683542171,0.37411622,2517.3,2517.2,22.00766804]
[1751683545008,0.37408693,2517.3,2517.2,22.00766804]
[1751683548800,0.37408693,2517.3,2517.2,10.0]
[1751683549008,1.14738693,2517.3,2517.2,18.034]
[1751683550817,1.14725573,2517.3,2517.2,18.034]
[1751683551189,1.14725573,2517.3,2517.2,22.00666804]
[1751683551682,0.37395573,2517.3,2517.2,22.00666804]
[1751683554028,0.37395573,2517.3,2517.2,22.00566804]
[1751683555299,0.37395573,2517.3,2517.2,13.97266804]
[1751683555624,0.37395573,2517.3,2517.2,22.00566804]
[1751683556624,0.37386786,2517.3,2517.2,22.00566804]
[1751683559617,0.37386999,2517.3,2517.2,22.00566804]
[1751683562121,0.37386999,2517.3,2517.2,13.97266804]
[1751683562430,0.37386999,2517.3,2517.2,22.00466804]
[1751683562928,0.002,2517.3,2517.2,22.00466804]
[1751683563293,0.3740792,2517.3,2517.2,22.00466804]
[1751683568726,0.002,2517.3,2517.2,22.00466804]
[1751683569031,0.37450002,2517.3,2517.2,22.00466804]
[1751683570433,0.37450002,2517.3,2517.2,24.68077595]
[1751683572409,0.37450002,2517.3,2517.2,22.00466804]
[1751683574138,0.37450002,2517.3,2517.2,22.00266804]
[1751683575543,0.37450002,2517.3,2517.2,13.97266804]
[1751683575718,0.37450002,2517.3,2517.2,22.00266804]
[1751683582851,0.37452678,2517.3,2517.2,22.00266804]
[1751683583729,0.37452678,2517.3,2517.2,24.67857715]
[1751683585922,0.37442243,2517.3,2517.2,24.67857715]
[1751683586622,0.37442243,2517.3,2517.2,25.48627715]
[1751683588218,0.002,2517.3,2517.2,25.48627715]
[1751683597227,1e-08,2517.3,2517.2,25.48627715]
[1751683600459,1e-08,2517.3,2517.2,30.22627715]
[1751683601731,1e-08,2517.3,2517.2,30.42781334]
[1751683602368,1e-08,2517.3,2517.2,30.22627715]
[1751683605186,1e-08,2517.3,2517.2,30.43028213]
[1751683605664,1e-08,2517.3,2517.2,30.22627715]
[1751683608261,1e-08,2517.3,2517.2,30.42984298]
[1751683609174,1e-08,2517.3,2517.2,30.22627715]
[1751683610552,1e-08,2517.3,2517.2,30.42419106]
[1751683620477,0.01,2518.2,2518.1,13.97124816]
[1751683620774,0.01,2518.2,2518.1,24.54691063]
[1751683622681,0.01,2518.4,2518.2,13.97109046]
[1751683632782,0.0455317,2518.3,2518.2,13.97109046]
[1751683633399,0.002,2518.3,2518.2,13.97109046]
[1751683633600,0.0435317,2519.3,2518.5,0.7751]
[1751683633803,0.826,2519.2,2518.7,3.97030213]
[1751683633993,0.826,2519.2,2519.1,13.9696717]
[1751683634501,0.826,2519.2,2519.1,21.9886717]
[1751683639108,0.0435317,2519.3,2519.2,13.96951413]
[1751683639275,0.0435317,2519.3,2519.2,14.97800765]
[1751683645282,0.0435317,2519.3,2519.2,22.99500765]
[1751683645597,0.8097317,2519.9,2519.6,10.0]
[1751683645785,0.8097317,2519.9,2519.8,13.96856893]
[1751683645992,0.8097317,2519.9,2519.8,24.18412582]
[1751683647824,0.8097317,2519.9,2519.8,10.0]
[1751683648014,0.8097317,2519.9,2519.8,18.016]
[1751683649020,1.18032673,2519.9,2519.8,18.016]
[1751683649506,1.18232673,2519.9,2519.8,18.016]
[1751683652587,1.18244123,2519.9,2519.8,21.98456893]
[1751683652785,0.7617317,2519.9,2519.8,21.98456893]
[1751683656017,0.002,2519.9,2519.8,21.98456893]
[1751683665952,0.002,2519.9,2519.8,21.98556893]
[1751683666624,0.37328524,2519.9,2519.8,21.98556893]
[1751683666810,0.002,2519.9,2519.8,21.98556893]
[1751683667014,0.37328524,2519.9,2519.8,21.98556893]
[1751683667242,0.002,2519.9,2519.8,21.98556893]
[1751683667448,0.37328524,2519.9,2519.8,21.98556893]
[1751683668250,0.002,2519.9,2519.8,21.98556893]
[1751683668452,0.37328524,2519.9,2519.8,21.98556893]
[1751683669234,0.002,2519.9,2519.8,21.98556893]
[1751683669425,0.37358941,2519.9,2519.8,21.98556893]
[1751683671819,0.37358941,2519.9,2519.8,24.58099702]
[1751683672219,0.37358941,2519.9,2519.8,16.56499702]
[1751683672421,0.37358941,2519.9,2519.8,24.57899702]
[1751683673363,0.37396169,2519.9,2519.8,24.57899702]
[1751683674231,0.002,2519.9,2519.8,24.57899702]
[1751683674433,0.37396169,2519.9,2519.8,24.57899702]
[1751683675246,0.37409837,2519.9,2519.8,24.57899702]
[1751683678837,0.002,2519.9,2519.8,24.57899702]
[1751683680403,1e-08,2519.9,2519.8,25.36409702]
[1751683681181,1e-08,2519.9,2519.8,25.91409702]
[1751683682872,1e-08,2519.9,2519.8,17.90009702]
[1751683683175,1e-08,2519.9,2519.8,25.36309702]
[1751683683565,1e-08,2519.9,2519.8,16.56499702]
[1751683683764,1e-08,2519.9,2519.8,21.98156893]
[1751683684590,1e-08,2519.9,2519.8,22.76666893]
[1751683685391,1e-08,2519.9,2519.8,23.31666893]
[1751683686267,1e-08,2519.9,2519.8,28.05666893]
[1751683689904,1e-08,2519.9,2519.8,20.04466893]
[1751683690108,1e-08,2519.9,2519.8,31.21640409]
[1751683697286,1e-08,2520.4,2520.3,4.75008161]
[1751683697483,1e-08,2520.4,2520.3,23.35075942]
[1751683697690,1e-08,2520.4,2520.3,23.31108161]
[1751683702196,1e-08,2520.4,2520.3,25.25808161]
[1751683702539,1e-08,2520.4,2520.3,27.32691803]
[1751683703722,1e-08,2520.4,2520.3,27.32591803]
[1751683710241,1e-08,2520.4,2520.3,26.77491803]
[1751683710944,1e-08,2520.4,2520.3,27.32491803]
[1751683711442,1e-08,2520.4,2520.3,26.77491803]
[1751683711829,1e-08,2520.4,2520.3,27.32491803]
[1751683712044,1e-08,2520.4,2520.3,26.54261803]
[1751683713947,1e-08,2520.4,2520.3,16.58661803]
[1751683714129,1e-08,2520.4,2520.3,26.54261803]
[1751683714939,1e-08,2520.4,2520.3,25.99261803]
[1751683715123,1e-08,2520.4,2520.3,26.54261803]
[1751683715832,1e-08,2520.4,2520.3,31.28261803]
[1751683716160,1e-08,2520.4,2520.3,32.04161803]
[1751683717261,0.0435317,2520.9,2520.8,13.9669946]
[1751683717560,0.0435317,2520.9,2520.8,21.9759946]
[1751683720965,0.0435317,2520.9,2520.8,13.9669946]
[1751683721166,0.0435317,2520.9,2520.8,21.9759946]
[1751683722936,0.0435317,2520.9,2520.8,24.26504273]
[1751683728338,0.0435317,2520.9,2520.8,21.9759946]
[1751683731273,0.8505317,2520.9,2520.8,21.9759946]
[1751683733043,0.0435317,2520.9,2520.8,21.9759946]
[1751683734466,0.0455317,2520.9,2520.8,21.9759946]
[1751683738175,0.0455317,2520.9,2520.8,13.9669946]
[1751683738367,0.0455317,2520.9,2520.8,21.9749946]
[1751683739298,0.0455317,2520.9,2520.8,25.237907]
[1751683742065,1e-08,2520.9,2520.8,26.540107]
[1751683745499,1e-08,2520.9,2520.8,31.280107]
[1751683748160,1e-08,2520.9,2520.8,23.272107]
[1751683748360,1e-08,2520.9,2520.8,31.279107]
[1751683751367,1e-08,2520.9,2520.8,26.539107]
[1751683755115,1e-08,2521.0,2520.9,14.51683724]
[1751683755301,1e-08,2521.0,2520.9,22.45120165]
[1751683757304,1e-08,2521.0,2520.9,23.26780165]
[1751683764206,1e-08,2521.0,2520.9,33.21980165]
[1751683764710,1e-08,2521.0,2520.9,23.26780165]
[1751683764914,1e-08,2521.0,2520.9,33.21880165]
[1751683765207,1e-08,2521.0,2520.9,23.26780165]
[1751683765401,1e-08,2521.0,2520.9,33.21880165]
[1751683766507,1e-08,2521.0,2520.9,22.45120165]
[1751683766707,1e-08,2521.0,2520.9,29.90620165]
[1751683767124,1e-08,2521.0,2520.9,29.90720165]
[1751683767924,0.00200001,2521.0,2520.9,29.90720165]
[1751683769122,0.00200001,2521.0,2520.9,25.16720165]
[1751683772412,1e-08,2521.0,2520.9,26.48230165]
[1751683778045,1e-08,2521.0,2520.9,31.22230165]
[1751683780131,0.7907,2521.8,2521.6,3.96573604]
[1751683780423,0.7907,2521.8,2521.7,21.96957877]
[1751683780624,1.16224743,2521.8,2521.7,21.96957877]
[1751683780928,0.0435317,2521.9,2521.8,13.96542152]
[1751683784429,0.0455317,2521.9,2521.8,13.96542152]
[1751683785418,0.8188317,2521.9,2521.8,13.96542152]
[1751683786033,0.8188317,2521.9,2521.8,21.96842152]
[1751683788529,0.8188317,2521.9,2521.8,13.96542152]
[1751683788739,0.8188317,2521.9,2521.8,21.96842152]
[1751683790011,0.8188317,2521.9,2521.8,8.003]
[1751683790012,1.18963513,2521.9,2521.8,8.003]
[1751683790240,0.7649,2521.8,2520.9,3.96776112]
[1751683790442,0.7649,2521.6,2521.1,3.96644455]
[1751683790613,0.7649,2521.4,2521.3,13.96620138]
[1751683791132,0.7649,2521.4,2521.3,3.96620138]
[1751683791344,1.13578954,2521.4,2521.3,13.96620138]
[1751683792639,0.7649,2521.4,2521.3,13.96620138]
[1751683792938,1.13570541,2521.4,2521.3,13.96620138]
[1751683793338,0.7649,2521.4,2521.3,13.96620138]
[1751683796806,0.7649,2521.4,2521.3,10.0]
[1751683797010,1.13563306,2521.4,2521.3,18.005]
[1751683797206,2.00759343,2521.4,2521.3,18.005]
[1751683797746,2.00759343,2521.4,2521.3,18.006]
[1751683800652,5.97364403,2521.4,2521.3,10.0]
[1751683800832,2.00759343,2521.4,2521.3,10.0]
[1751683801013,0.8288,2521.3,2520.9,0.001]
[1751683801213,0.8288,2521.1,2521.0,18.006]
[1751683801643,1.19943538,2521.1,2521.0,18.006]
[1751683802227,1.19943538,2521.1,2521.0,10.0]
[1751683802747,5.16595792,2521.1,2521.0,10.0]
[1751683802948,6.89732467,2521.1,2521.0,18.011]
[1751683803623,2.93080213,2521.1,2521.0,18.011]
[1751683804853,6.89732467,2521.1,2521.0,18.011]
[1751683805037,2.93080213,2521.1,2521.0,18.011]
[1751683805720,2.93034312,2521.1,2521.0,18.011]
[1751683805919,2.56016675,2521.1,2521.0,18.011]
[1751683806649,6.52668929,2521.1,2521.0,18.011]
[1751683807449,2.56016675,2521.1,2521.0,18.011]
[1751683808067,2.93018659,2521.1,2521.0,18.011]
[1751683808247,0.37001984,2521.1,2521.0,21.97767988]
[1751683808452,8.39227068,2521.5,2521.1,10.0]
[1751683808747,5.1443937,2521.4,2521.3,10.0]
[1751683808934,5.1443937,2521.4,2521.3,18.009]
[1751683809136,7.00840793,2521.4,2521.3,18.009]
[1751683809453,3.04226699,2521.4,2521.3,18.009]
[1751683809623,7.00831759,2521.4,2521.3,18.009]
[1751683810227,3.04226699,2521.4,2521.3,18.009]
[1751683810631,0.36995276,2521.4,2521.3,21.9752079]
[1751683810822,0.36979948,2521.6,2521.4,13.96600242]
[1751683811157,0.7625,2521.7,2521.5,8.012]
[1751683811327,0.3698214,2521.6,2521.5,8.012]
[1751683811661,0.3698214,2521.6,2521.5,21.97789331]
[1751683812373,0.7625,2521.7,2521.6,10.0]
[1751683813163,1.13253674,2521.7,2521.6,10.0]
[1751683816647,6.37084737,2521.7,2521.6,10.0]
[1751683816852,6.37084737,2521.7,2521.6,18.01]
[1751683817051,6.37147546,2521.7,2521.6,18.01]
[1751683817251,0.7625,2521.6,2520.9,0.001]
[1751683817457,0.7625,2521.2,2521.1,10.0]
[1751683817767,1.13316483,2521.2,2521.1,10.0]
[1751683818332,1.13316483,2521.2,2520.9,3.96783047]
[1751683818534,0.37066483,2521.1,2521.0,18.014]
[1751683819631,0.37066483,2521.1,2521.0,10.0]
[1751683819967,0.37066483,2521.1,2521.0,18.013]
[1751683821064,0.37066483,2521.1,2521.0,21.97967988]
[1751683822954,8.35667068,2521.5,2521.2,10.0]
[1751683823151,1.79838896,2521.4,2521.3,18.016]
[1751683825469,1.79838896,2521.4,2521.3,18.016]
[1751683827574,0.37134012,2521.4,2521.3,18.016]
[1751683829068,0.37134012,2521.4,2521.3,21.9822079]
[1751683829361,0.37134012,2521.4,2521.3,18.016]
[1751683830759,0.37134012,2521.4,2521.3,21.9822079]
[1751683831669,8.41837068,2521.7,2521.4,13.96600299]
[1751683831874,0.37155673,2521.6,2521.5,8.012]
[1751683833152,0.37155673,2521.6,2521.5,21.97789331]
[1751683838278,0.37155673,2521.6,2521.5,24.6508872]
[1751683843688,0.002,2521.7,2521.6,13.96573604]
[1751683843983,0.37343579,2521.7,2521.6,13.96573604]
[1751683845866,0.002,2521.7,2521.6,13.96573604]
[1751683848592,0.37333204,2521.7,2521.6,13.96573604]
[1751683853399,0.37333204,2521.7,2521.6,13.71573604]
[1751683855311,0.37352263,2521.7,2521.6,13.71573604]
[1751683856999,0.37352263,2521.7,2521.6,10.0]
[1751683861287,0.37352263,2521.7,2521.6,13.96573604]
[1751683861692,0.37352263,2521.7,2521.5,13.96583981]
[1751683862011,0.002,2521.7,2521.6,18.005]
[1751683862319,0.37396954,2521.7,2521.6,18.005]
[1751683863324,0.37396954,2521.7,2521.6,21.97073604]
[1751683866128,0.37396954,2521.7,2521.6,22.78883604]
[1751683868227,0.37412343,2521.7,2521.6,21.97073604]
[1751683869131,0.37415988,2521.7,2521.6,21.97073604]
[1751683871443,0.37415988,2521.7,2521.6,25.39629834]
[1751683882247,0.002,2521.7,2521.6,25.39629834]
[1751683886022,0.002,2521.7,2521.6,30.68629834]
[1751683887049,0.002,2521.7,2521.6,31.38629834]
[1751683888196,0.002,2521.7,2521.6,33.33129834]
[1751683890044,0.002,2521.7,2521.6,22.83129834]
[1751683890278,0.002,2521.7,2521.6,30.83429834]
[1751683890480,0.002,2521.7,2521.6,25.39429834]
[1751683895389,0.002,2521.7,2521.6,17.39129834]
[1751683895692,0.002,2521.7,2521.6,25.39429834]
[1751683904777,0.002,2521.7,2521.6,17.39129834]
[1751683904976,0.002,2521.7,2521.6,25.39329834]
[1751683905713,0.002,2521.7,2521.6,17.39129834]
[1751683905898,0.002,2521.7,2521.6,25.39329834]
[1751683910299,0.002,2521.7,2521.6,26.09329834]
[1751683913477,0.002,2521.7,2521.6,25.39329834]
[1751683915080,0.002,2521.7,2521.6,17.39129834]
[1751683915408,0.002,2521.7,2521.6,26.09329834]
[1751683918891,0.002,2521.7,2521.6,25.39329834]
[1751683921312,0.002,2521.7,2521.6,25.39229834]
[1751683924529,0.002,2521.7,2521.6,26.09229834]
[1751683924832,0.002,2521.7,2521.6,25.39229834]
[1751683933445,0.0455317,2521.9,2521.8,3.96542152]
[1751683933616,0.0455317,2521.9,2521.8,25.815314]
[1751683939852,0.0455317,2521.9,2521.8,17.814314]
[1751683940014,0.0455317,2521.9,2521.8,25.814314]
[1751683948154,0.0455317,2521.9,2521.8,17.814314]
[1751683948444,0.41759861,2521.9,2521.8,13.96542152]
[1751683948636,0.41759861,2521.9,2521.8,21.96542152]
[1751683950153,0.41759724,2521.9,2521.8,21.96542152]
[1751683953280,0.41759522,2521.9,2521.8,13.96542152]
[1751683953460,0.41759522,2521.9,2521.8,21.96442152]
[1751683954326,0.41759522,2521.9,2521.6,0.001]
[1751683954327,0.8239,2521.8,2521.6,0.001]
[1751683954566,6.69150069,2521.7,2521.6,0.001]
[1751683954762,6.69150069,2521.7,2521.6,18.0]
[1751683954763,7.3652045,2521.7,2521.6,18.0]
[1751683954972,7.3652045,2521.7,2521.6,8.0]
[1751683955383,7.3652045,2521.7,2521.6,18.0]
[1751683955747,1.86966161,2521.7,2521.6,18.0]
[1751683955950,1.49760381,2521.7,2521.6,18.0]
[1751683956246,1.8691174,2521.7,2521.6,18.0]
[1751683956846,1.19541359,2521.7,2521.6,18.0]
[1751683958975,1.19541359,2521.7,2521.6,10.001]
[1751683959175,1.19541359,2521.7,2521.6,18.001]
[1751683964804,0.37151359,2521.7,2521.6,21.96673604]
[1751683965007,0.8575317,2521.9,2521.7,13.96557877]
[1751683965215,0.37051406,2521.8,2521.7,13.96557877]
[1751683965505,0.37051406,2521.8,2521.7,18.001]
[1751683966180,0.37051406,2521.8,2521.7,21.96657877]
[1751683966377,0.0455317,2521.9,2521.8,13.96542152]
[1751683966890,1.22803781,2521.9,2521.8,10.0]
[1751683967088,1.22803781,2521.9,2521.8,18.001]
[1751683967289,2.10796073,2521.9,2521.8,18.001]
[1751683968297,2.10796073,2521.9,2521.8,18.0]
[1751683976391,0.41603781,2521.9,2521.8,18.0]
[1751683979607,0.41603781,2521.9,2521.8,21.96542152]
[1751683979818,0.0455317,2521.9,2521.8,21.96542152]
[1751683980008,0.41603781,2521.9,2521.8,18.0]